bitfinex-derivatives/quotes_ETHF0:USTF0_20250212
["timestamp","ask_amount","ask_price","bid_price","bid_amount"]
[1739367487878,3.2078,2562.4,2562.0,0.00301552]
[1739367488072,3.0161628,2562.1,2562.0,5.52e-06]
[1739367488277,2.2355128,2562.1,2562.0,5.52e-06]
[1739367488474,3.9942008,2562.5,2562.0,5.52e-06]
[1739367488778,4.96790479,2562.1,2562.0,5.52e-06]
[1739367488976,4.96790479,2562.1,2561.8,16.49162121]
[1739367488977,24.59625479,2562.1,2561.8,15.09176121]
[1739367489177,3.2078,2561.4,2559.6,3.2078]
[1739367489379,0.78126,2560.1,2559.0,93.98371557]
[1739367489683,3.2078,2560.4,2558.9,3.2078]
[1739367489981,0.78145,2559.5,2559.2,11.71702751]
[1739367490191,20.409,2560.6,2559.0,11.71702751]
[1739367490192,3.2078,2559.4,2559.0,11.71702751]
[1739367490375,3.2078,2559.7,2559.0,11.71702751]
[1739367490580,0.15614968,2559.4,2557.8,6.81964354]
[1739367490781,3.2078,2561.0,2559.3,3.2078]
[1739367490985,0.78088,2561.4,2560.8,6.57712272]
[1739367491187,8.9621,2562.6,2561.3,6.57712272]
[1739367491382,6.81964354,2563.2,2561.8,6.57712272]
[1739367491685,6.81964354,2563.8,2562.8,6.57712272]
[1739367491891,0.07801224,2563.7,2562.4,3.2078]
[1739367492088,10.02744354,2562.7,2561.5,3.2078]
[1739367492275,6.81964354,2562.7,2561.2,9.78492272]
[1739367492579,0.00586235,2562.8,2561.8,6.57712272]
[1739367492787,0.04570582,2562.6,2561.7,3.2078]
[1739367492977,0.04570582,2562.6,2560.4,6.81964354]
[1739367492978,0.04570582,2562.6,2562.2,3.2078]
[1739367493286,6.81964354,2563.9,2562.5,9.78492272]
[1739367493486,6.81964354,2563.9,2560.5,8.71445318]
[1739367493487,3.2078,2564.2,2563.3,6.57712272]
[1739367493793,0.78009,2564.0,2563.6,6.57712272]
[1739367494084,8.31372854,2564.4,2563.9,1.58035645]
[1739367494388,8.31372854,2564.4,2564.3,3.2078]
[1739367494680,0.00585001,2564.1,2563.1,0.01411653]
[1739367494887,0.78015,2563.8,2562.9,3.2078]
[1739367495080,0.78008,2564.0,2563.2,3.2078]
[1739367495288,0.00585001,2564.1,2563.7,3.2078]
[1739367495485,0.00585001,2564.1,2564.0,3.2078]
[1739367496184,8.01199844,2564.6,2564.0,3.2078]
[1739367496385,3.2078,2566.1,2564.5,3.2078]
[1739367496584,2.7629542,2566.6,2565.2,3.2078]
[1739367496788,2.7629542,2566.6,2566.2,3.2078]
[1739367496998,2.7629542,2566.6,2566.5,3.2078]
[1739367497284,5.5259084,2567.2,2566.5,3.2078]
[1739367497489,3.8032939,2567.2,2566.6,0.3896]
[1739367497688,0.00585001,2566.7,2566.5,6.81964354]
[1739367497878,3.8032939,2567.2,2566.6,3.2078]
[1739367498083,3.2078,2568.7,2567.0,3.2078]
[1739367498287,27.3323855,2569.3,2566.1,0.0058358]
[1739367498288,0.77882,2568.2,2566.9,3.2078]
[1739367498487,27.3323855,2569.3,2566.1,0.0058358]
[1739367498488,3.2078,2567.1,2566.1,0.0058358]
[1739367498684,3.2078,2566.5,2565.1,3.2078]
[1739367498888,3.2078,2565.9,2564.1,3.2078]
[1739367499088,3.2078,2565.9,2564.4,3.2078]
[1739367499286,3.2078,2565.5,2564.1,3.2078]
[1739367499594,3.2078,2565.2,2563.6,4.5786]
[1739367499790,0.77976,2565.0,2564.9,0.00585001]
[1739367499986,27.24464354,2565.8,2563.6,4.5786]
[1739367499987,3.2078,2565.6,2564.8,3.2078]
[1739367500189,3.2078,2566.0,2564.7,3.2078]
[1739367500386,0.77961,2565.6,2564.7,3.2078]
[1739367500586,3.2078,2565.6,2564.8,3.2078]
[1739367500891,3.2078,2565.4,2564.8,3.2078]
[1739367501092,3.2078,2565.0,2563.9,5.00011931]
[1739367501288,0.7801,2563.9,2563.0,5.78978]
[1739367501492,3.2078,2564.0,2563.0,5.78978]
[1739367501788,3.2078,2563.3,2562.4,3.2078]
[1739367501990,3.9882,2563.0,2561.7,4.4876]
[1739367502191,6.81964354,2563.7,2561.7,4.4876]
[1739367502192,10.02744354,2563.7,2561.8,3.2078]
[1739367502380,10.02744354,2562.7,2561.4,3.2078]
[1739367502586,6.81964354,2562.7,2560.9,3.2078]
[1739367502893,0.00585001,2563.8,2562.5,0.0058358]
[1739367502894,3.2078,2563.4,2562.5,0.0058358]
[1739367503089,3.2078,2563.1,2562.5,3.2136358]
[1739367503394,0.18283398,2562.8,2562.5,0.0058358]
[1739367503694,3.2078,2564.1,2562.7,3.2078]
[1739367504001,3.2078,2563.0,2562.5,0.0058358]
[1739367504184,0.78049,2562.7,2561.5,3.2078]
[1739367504384,3.2078,2562.6,2562.0,3.2078]
[1739367504690,3.2078,2567.5,2565.1,3.2078]
[1739367504892,3.2078,2566.3,2565.4,6.81964354]
[1739367505089,3.2078,2566.0,2564.7,10.02744354]
[1739367505284,3.2078,2564.8,2564.1,6.81964354]
[1739367505489,3.2078,2564.2,2563.4,3.2078]
[1739367505691,3.2078,2563.9,2562.9,3.2078]
[1739367505890,8.76903354,2565.1,2562.9,3.2078]
[1739367505891,3.2078,2563.6,2562.9,3.2078]
[1739367506093,3.2078,2563.6,2562.2,5.7982]
[1739367506094,0.00585001,2564.1,2563.5,0.00585001]
[1739367506288,3.98799,2563.6,2563.5,1e-08]
[1739367506491,3.98793,2563.9,2562.3,3.98837]
[1739367506799,0.00585001,2564.1,2563.3,3.2078]
[1739367507091,3.2078,2565.7,2563.9,3.2078]
[1739367507289,3.2078,2565.3,2564.7,3.2078]
[1739367507496,3.2078,2565.7,2564.3,3.2078]
[1739367507693,3.2078,2564.9,2563.9,3.2078]
[1739367507885,0.00585001,2565.3,2563.9,3.2078]
[1739367508091,3.2078,2564.8,2563.9,3.2078]
[1739367508391,0.00585001,2565.3,2564.1,3.2078]
[1739367508586,0.00585001,2565.3,2564.4,3.2078]
[1739367508792,6.9073855,2567.1,2564.6,3.2078]
[1739367508793,3.2078,2565.6,2564.6,3.2078]
[1739367508992,6.9073855,2567.1,2565.0,3.2078]
[1739367508993,3.2078,2566.4,2565.0,3.2078]
[1739367509293,3.2078,2565.1,2564.1,3.2078]
[1739367509485,3.2078,2565.1,2563.8,6.81964354]
[1739367509486,3.2078,2565.5,2564.4,3.2078]
[1739367509692,0.77977,2565.0,2564.4,3.2078]
[1739367509897,27.24964354,2566.5,2564.1,3.2078]
[1739367509898,3.2078,2565.1,2564.1,3.2078]
[1739367510095,3.2078,2564.5,2563.3,3.2078]
[1739367510395,0.78022,2563.5,2563.4,1.0]
[1739367510594,0.78019,2563.7,2563.4,1.0]
[1739367510790,3.2078,2564.1,2563.4,1.0]
[1739367510987,3.2078,2565.0,2563.6,3.2078]
[1739367511187,0.78022,2563.5,2563.4,0.20598]
[1739367511593,0.00585001,2563.8,2563.1,3.2078]
[1739367511794,0.78027,2563.4,2563.2,0.00585001]
[1739367512009,0.00585001,2563.8,2563.2,0.00585001]
[1739367512010,0.78028,2563.3,2563.2,1e-08]
[1739367512301,3.98808,2563.3,2563.2,1e-08]
[1739367512506,6.78028,2563.3,2563.2,1e-08]
[1739367512706,1.78028,2563.3,2563.2,1e-08]
[1739367513005,9.98808,2563.3,2563.2,1e-08]
[1739367513707,0.78082,2561.6,2561.3,3.2078]
[1739367513902,3.2078,2563.2,2561.3,3.2078]
[1739367514094,4.7069,2563.7,2562.3,3.2078]
[1739367514301,3.2078,2562.9,2562.3,3.2078]
[1739367514499,3.2078,2562.6,2561.9,3.2078]
[1739367514702,6.81964354,2563.5,2561.4,3.2078]
[1739367514703,3.2078,2562.9,2561.4,3.2078]
[1739367514902,3.2078,2562.9,2560.9,4.8148]
[1739367514903,3.2078,2562.2,2560.9,4.8148]
[1739367515111,20.433,2562.6,2561.1,3.2078]
[1739367515306,0.7807,2562.0,2561.4,3.2078]
[1739367515516,0.32000317,2562.1,2561.4,3.2078]
[1739367515811,0.04572188,2562.5,2562.0,3.2078]
[1739367516108,0.31997462,2562.6,2562.0,3.2078]
[1739367516314,0.00585001,2562.5,2561.6,3.2078]
[1739367516506,0.00585001,2562.5,2562.2,3.2078]
[1739367516708,0.78055,2562.4,2562.2,3.2078]
[1739367517010,0.78640001,2562.5,2562.2,3.2078]
[1739367517214,0.00585001,2562.5,2562.2,3.2078]
[1739367517612,0.78057,2562.4,2562.2,3.2078]
[1739367517913,0.00585001,2562.5,2562.2,3.2078]
[1739367518517,0.00585001,2562.5,2561.8,3.2078]
[1739367518905,0.00585001,2562.5,2562.4,3.2078]
[1739367519105,6.81964354,2564.5,2562.7,3.2078]
[1739367519307,3.2078,2564.7,2563.9,3.2078]
[1739367519506,3.2078,2564.7,2564.2,3.2078]
[1739367519711,0.02702677,2564.5,2564.4,3.2078]
[1739367520009,6.9073855,2565.5,2564.4,3.2078]
[1739367520204,6.9073855,2565.5,2564.4,8.27634762]
[1739367520404,6.9073855,2565.5,2564.4,3.2078]
[1739367520611,0.77979,2564.9,2564.7,0.00585001]
[1739367520812,0.77982,2564.8,2564.7,0.00585001]
[1739367521110,0.01932638,2564.8,2564.7,3.21365001]
[1739367521509,2.71284188,2565.5,2565.0,3.2078]
[1739367521709,20.436,2566.9,2565.4,3.2078]
[1739367522003,23.6438,2566.9,2565.7,3.2078]
[1739367522203,3.2078,2566.1,2565.0,3.2078]
[1739367522410,3.2078,2566.1,2565.6,3.2078]
[1739367522613,8.28893813,2567.3,2566.0,3.2078]
[1739367522916,0.00585001,2565.8,2565.6,3.2078]
[1739367523116,0.77919,2567.0,2565.6,9.21365001]
[1739367523316,3.2078,2567.2,2566.1,3.2078]
[1739367523612,3.2078,2567.2,2565.7,5.03371493]
[1739367523613,3.2078,2567.0,2565.7,3.2078]
[1739367523810,0.77943,2566.1,2565.6,0.00585001]
[1739367524014,3.2078,2565.9,2564.7,3.2078]
[1739367524210,3.2078,2565.7,2564.4,3.2078]
[1739367524508,3.21365001,2566.1,2564.4,3.2078]
[1739367524709,0.00585001,2566.1,2565.0,3.2078]
[1739367524916,3.2078,2565.2,2564.6,6.81964354]
[1739367525209,0.01965289,2564.9,2564.7,5.10454279]
[1739367525403,0.00585001,2566.1,2564.8,3.2078]
[1739367525609,0.77915,2567.1,2566.0,3.2078]
[1739367525807,3.2078,2566.9,2566.0,3.2078]
[1739367526109,3.2078,2567.5,2566.3,3.2078]
[1739367526311,3.2078,2567.5,2564.9,6.0897]
[1739367526312,3.2078,2566.4,2564.5,3.2078]
[1739367526517,0.77994,2564.5,2563.5,3.2078]
[1739367526709,3.2078,2564.2,2563.1,3.2078]
[1739367526906,3.2078,2563.2,2562.5,3.2078]
[1739367527108,3.2078,2562.8,2561.5,3.2078]
[1739367527305,3.2078,2562.9,2561.5,3.2078]
[1739367527506,0.01926145,2562.2,2561.8,3.2078]
[1739367527711,0.04570582,2563.1,2561.8,3.2078]
[1739367527712,3.2078,2563.5,2563.0,3.84949418]
[1739367527908,12.84144354,2565.1,2563.0,3.84949418]
[1739367527909,3.2078,2564.7,2563.4,3.84949418]
[1739367528106,0.77991,2564.5,2564.4,3.84949418]
[1739367528307,3.2078,2564.6,2564.2,3.84949418]
[1739367528608,0.00585001,2564.3,2564.0,3.84949418]
[1739367528816,0.00585001,2564.3,2563.4,3.2078]
[1739367529117,3.2078,2565.6,2564.7,0.63584417]
[1739367529320,3.2078,2565.6,2564.1,3.21365001]
[1739367529621,0.77952,2565.8,2565.5,0.63584417]
[1739367529910,3.2078,2567.4,2566.5,0.63584417]
[1739367530113,3.2078,2567.3,2566.1,3.2078]
[1739367530311,3.2078,2567.9,2566.9,3.2078]
[1739367530506,0.00585001,2567.2,2566.9,3.2078]
[1739367530706,3.2078,2567.1,2566.7,0.00585001]
[1739367530914,0.00585001,2567.2,2567.0,0.65064395]
[1739367531115,3.32007,2568.4,2567.0,3.2078]
[1739367531414,0.77827,2570.0,2568.3,3.2078]
[1739367531618,0.07782403,2569.9,2568.6,3.2078]
[1739367531817,0.07782403,2569.9,2568.9,3.2078]
[1739367532118,13.4182245,2569.3,2568.7,4.9641443]
[1739367532319,13.4182245,2569.3,2568.8,3.2078]
[1739367532508,13.4182245,2569.3,2569.1,0.00583851]
[1739367532910,0.00583851,2569.7,2569.2,11.78060386]
[1739367533219,3.2078,2571.5,2570.3,6.81964354]
[1739367533512,3.2078,2570.7,2569.7,6.81964354]
[1739367533713,3.2078,2571.1,2569.4,3.2078]
[1739367533911,4.4156,2571.9,2569.4,3.2078]
[1739367533912,0.77825,2570.0,2569.4,3.2078]
[1739367534120,3.2078,2570.8,2569.5,5.04712278]
[1739367534309,3.21167315,2570.5,2570.0,0.00583851]
[1739367534511,3.98602,2570.1,2570.0,8.51e-06]
[1739367535019,0.77822,2570.1,2570.0,8.51e-06]
[1739367535517,0.7782,2570.2,2570.0,8.51e-06]
[1739367535716,0.78197315,2570.5,2570.0,8.51e-06]
[1739367535912,0.00387315,2570.5,2570.0,8.51e-06]
[1739367536110,0.00387315,2570.5,2570.1,5.07532026]
[1739367536416,0.00387315,2570.5,2570.4,3.2078]
[1739367536616,3.2078,2570.7,2570.0,8.51e-06]
[1739367536922,0.77821,2570.2,2570.0,8.51e-06]
[1739367537115,3.2078,2570.9,2570.0,8.51e-06]
[1739367537518,3.2078,2571.9,2570.3,3.2078]
[1739367537714,3.2078,2571.9,2570.6,3.2078]
[1739367537924,0.00583,2570.7,2570.6,3.2078]
[1739367538117,0.00583,2570.7,2570.4,5.15834799]
[1739367538315,0.00583,2570.7,2570.3,3.2078]
[1739367538524,0.00583,2570.7,2570.1,3.2078]
[1739367538818,0.00583,2570.7,2570.1,8.29612891]
[1739367539023,0.00583,2570.7,2570.4,3.2078]
[1739367539821,0.00583,2570.7,2570.3,3.2078]
[1739367540020,0.77809,2570.6,2570.0,6.81965205]
[1739367540326,0.00583,2570.7,2570.5,3.2078]
[1739367540724,0.00583,2570.7,2570.2,3.2078]
[1739367541227,0.77775,2571.7,2570.5,3.2078]
[1739367541414,3.2078,2572.9,2571.5,3.2078]
[1739367541620,0.77764,2572.0,2571.5,3.2078]
[1739367541814,3.2078,2572.9,2571.5,3.2078]
[1739367542015,3.2078,2573.7,2572.1,3.2078]
[1739367542222,8.0362,2574.1,2572.4,3.2078]
[1739367542428,3.2078,2573.7,2572.1,3.2078]
[1739367542624,8.0362,2574.1,2572.6,0.00583851]
[1739367542823,3.2078,2574.4,2572.7,3.5966]
[1739367543025,3.2078,2574.6,2573.0,3.2078]
[1739367543325,20.396,2574.8,2572.8,5.03087912]
[1739367543527,3.2078,2574.4,2573.0,3.2078]
[1739367543724,3.2078,2574.0,2573.0,3.2078]
[1739367543931,3.2078,2574.6,2573.3,3.2078]
[1739367544125,0.77688,2574.6,2573.9,3.2078]
[1739367544321,1.94146,2575.6,2573.1,5.02906072]
[1739367544322,3.2078,2575.6,2574.2,3.2078]
[1739367544527,0.77685,2574.7,2574.2,3.2078]
[1739367544720,4.4613,2576.5,2573.4,5.02906072]
[1739367544721,3.2078,2574.1,2574.0,5.0472517]
[1739367545024,3.2078,2574.1,2572.0,3.2078]
[1739367545025,1.94285,2573.7,2572.0,3.2078]
[1739367545231,3.98487,2573.9,2573.8,7.05e-06]
[1739367545425,3.2078,2574.7,2573.8,7.05e-06]
[1739367545630,3.2078,2574.4,2573.8,7.05e-06]
[1739367545831,3.2078,2574.9,2573.8,7.05e-06]
[1739367546124,3.2078,2575.3,2573.8,7.05e-06]
[1739367546325,0.77661,2575.5,2574.7,10.02744354]
[1739367546525,4.4613,2576.3,2575.0,3.2078]
[1739367546720,3.2078,2576.6,2575.3,3.2078]
[1739367546927,1.94041,2576.9,2575.3,3.2078]
[1739367546928,3.2078,2576.9,2575.3,3.2078]
[1739367547126,3.2078,2576.6,2575.4,3.2078]
[1739367547530,1.9404,2577.0,2574.7,7.59646354]
[1739367547531,0.77658,2575.5,2574.9,3.2078]
[1739367547727,0.00578887,2576.3,2574.9,3.2078]
[1739367547925,3.2078,2576.2,2574.4,3.2078]
[1739367548127,3.2078,2574.6,2574.0,3.2078]
[1739367548325,0.77707,2574.0,2573.3,3.2078]
[1739367548525,3.2078,2574.3,2573.3,3.2078]
[1739367548725,3.2078,2574.2,2573.0,3.2078]
[1739367548931,0.77719,2573.5,2573.4,5.12978655]
[1739367549329,3.2078,2574.0,2573.3,3.2078]
[1739367549635,14.7171,2575.6,2573.2,0.00582705]
[1739367549636,3.2078,2573.5,2573.2,0.00582705]
[1739367549835,0.77725,2573.3,2573.2,0.00582705]
[1739367550339,6.77725,2573.3,2573.2,7.05e-06]
[1739367550637,0.77725,2573.3,2573.2,7.05e-06]
[1739367550935,6.77725,2573.3,2573.2,7.05e-06]
[1739367551231,0.77781,2571.5,2570.9,3.2078]
[1739367551539,3.2078,2571.3,2570.5,3.2078]
[1739367551835,0.77801,2570.8,2570.5,3.2078]
[1739367552033,0.77801,2570.8,2569.9,3.2078]
[1739367552236,0.77812,2570.5,2569.9,3.2078]
[1739367552537,3.2078,2570.3,2569.0,9.2383]
[1739367552733,0.00582705,2570.6,2570.1,0.00582705]
[1739367553230,3.2078,2571.6,2570.5,3.2078]
[1739367553434,3.2078,2572.6,2570.8,3.2078]
[1739367553626,0.77758,2572.2,2571.6,3.2078]
[1739367553831,3.2078,2573.0,2571.9,3.2078]
[1739367554031,0.7772,2573.5,2572.5,3.2078]
[1739367554235,3.2078,2574.3,2573.1,3.2078]
[1739367554430,3.2078,2574.0,2573.1,3.2078]
[1739367554631,0.00582705,2573.3,2573.1,3.2078]
[1739367554831,3.2078,2574.8,2573.2,5.12040945]
[1739367555031,3.2078,2574.8,2573.7,3.2078]
[1739367555231,3.2078,2575.0,2573.7,3.2078]
[1739367555436,0.77677,2574.9,2573.8,11.94005299]
[1739367555652,0.77664,2575.3,2574.5,3.2078]
[1739367555937,3.2078,2575.4,2573.9,3.2078]
[1739367556129,3.2078,2575.4,2574.5,3.2078]
[1739367556333,0.00578887,2575.2,2574.6,3.21362705]
[1739367556535,1.14808,2576.0,2575.1,3.2078]
[1739367556839,1.14808,2576.0,2575.7,3.2078]
[1739367557033,1.14808,2576.0,2575.4,3.2078]
[1739367557431,1.14808,2576.0,2575.7,3.2078]
[1739367557639,0.77609,2577.2,2575.8,6.81964354]
[1739367557841,0.77615,2577.0,2576.1,3.2078]
[1739367558137,3.2078,2576.4,2575.2,3.2078]
[1739367558344,0.77662,2575.4,2574.9,3.2078]
[1739367558646,3.2078,2576.2,2574.9,8.23925413]
[1739367558836,3.2078,2577.2,2575.9,3.2078]
[1739367559031,3.2078,2577.3,2576.2,3.2078]
[1739367559233,3.2078,2577.0,2576.0,5.03145413]
[1739367559539,3.2078,2577.0,2575.5,3.2078]
[1739367559837,0.77608,2577.2,2576.2,0.00582705]
[1739367560030,3.98407,2576.6,2576.2,0.00582705]
[1739367560229,3.2078,2576.3,2576.2,0.00582705]
[1739367560433,0.77651,2575.8,2575.2,3.2078]
[1739367560641,3.2078,2575.8,2574.9,3.2078]
[1739367560836,0.77652,2575.7,2574.9,3.2078]
[1739367561040,0.77666,2575.3,2574.9,3.2078]
[1739367561347,3.2078,2576.0,2574.7,3.2078]
[1739367561542,3.2078,2575.7,2574.7,3.2078]
[1739367561841,3.2078,2575.2,2574.8,0.00582705]
[1739367562044,3.2078,2575.3,2574.8,0.00582705]
[1739367562641,0.00582705,2575.4,2574.8,7.05e-06]
[1739367562642,0.77676,2574.9,2574.8,7.05e-06]
[1739367562836,3.98456,2574.9,2574.8,7.05e-06]
[1739367563039,9.98456,2574.9,2574.8,7.05e-06]
[1739367563334,3.98456,2574.9,2574.8,7.05e-06]
[1739367564239,3.98456,2574.9,2573.0,4.5365]
[1739367564240,9.2078,2574.9,2573.1,3.2078]
[1739367564535,2.06738,2573.6,2572.6,5.08683844]
[1739367564736,3.2078,2573.6,2572.6,8.29463844]
[1739367564938,0.77715,2573.7,2572.9,3.2078]
[1739367565239,0.77691,2574.5,2573.6,3.2078]
[1739367565440,3.2078,2575.3,2573.6,3.2078]
[1739367565635,3.2078,2575.3,2573.7,5.05034314]
[1739367565636,3.2078,2575.0,2573.7,5.05034314]
[1739367565835,3.2078,2574.4,2573.7,5.05034314]
[1739367566048,3.2078,2574.1,2573.0,0.00582705]
[1739367566340,0.77731,2573.2,2573.0,0.00582705]
[1739367566551,1.94247,2574.2,2573.0,0.00582705]
[1739367566843,3.2078,2573.8,2573.0,0.00582705]
[1739367567034,1.94254,2574.1,2573.0,0.00582705]
[1739367567239,1.94254,2574.1,2573.0,7.05e-06]
[1739367567240,3.98511,2573.1,2573.0,7.05e-06]
[1739367567646,9.98511,2573.1,2573.0,7.05e-06]
[1739367569047,0.77786,2571.3,2570.7,6.81964354]
[1739367569243,1.94378,2572.5,2570.6,3.98586]
[1739367569244,3.2078,2572.2,2570.6,3.98586]
[1739367569444,3.2078,2572.2,2570.9,3.2078]
[1739367569748,3.2078,2572.8,2571.1,3.2078]
[1739367570048,0.77776,2571.6,2571.2,0.07778469]
[1739367570244,3.2078,2571.9,2571.2,0.07778469]
[1739367570448,0.77785,2571.3,2571.2,0.07778469]
[1739367570644,3.98565,2571.3,2571.2,4.69e-06]
[1739367570844,0.77785,2571.3,2571.2,4.69e-06]
[1739367571042,0.77789,2571.2,2570.7,3.2078]
[1739367571244,3.2078,2572.0,2570.7,3.2078]
[1739367571449,3.2078,2572.0,2571.0,0.00582705]
[1739367571653,0.77791,2571.1,2571.0,0.00582705]
[1739367571853,3.2078,2571.8,2571.0,0.00582705]
[1739367572147,0.77791,2571.1,2571.0,0.00582705]
[1739367572351,3.98571,2571.1,2571.0,7.05e-06]
[1739367572548,0.77791,2571.1,2571.0,7.05e-06]
[1739367572744,9.98571,2571.1,2571.0,7.05e-06]
[1739367572948,3.98571,2571.1,2571.0,7.05e-06]
[1739367573155,0.77791,2571.1,2571.0,7.05e-06]
[1739367573343,9.98571,2571.1,2571.0,7.05e-06]
[1739367573550,0.77791,2571.1,2571.0,7.05e-06]
[1739367574043,0.00746809,2571.3,2571.0,6.00000705]
[1739367574249,0.00582705,2571.8,2571.0,8.23627016]
[1739367574454,0.00582705,2571.8,2571.3,3.2078]
[1739367574951,0.77755,2572.3,2571.7,3.2078]
[1739367575250,3.2078,2573.1,2571.7,3.2078]
[1739367575450,1.94306,2573.4,2571.8,5.05973307]
[1739367575451,0.77767,2571.9,2571.8,5.05973307]
[1739367575649,3.2078,2572.5,2571.2,3.2078]
[1739367575953,3.2078,2572.9,2571.8,3.2078]
[1739367576251,3.2078,2573.6,2572.4,3.2078]
[1739367576442,3.2078,2573.9,2572.7,3.2078]
[1739367576641,0.07770611,2573.8,2572.7,3.2078]
[1739367576858,3.2078,2573.4,2572.1,3.2078]
[1739367577052,0.77745,2572.7,2572.1,3.2078]
[1739367577454,0.77743,2572.7,2572.1,3.2078]
[1739367577654,0.07772121,2573.3,2572.4,3.2078]
[1739367577951,0.07772121,2573.3,2573.0,3.2078]
[1739367578161,0.00582705,2573.6,2573.0,3.2078]
[1739367578352,0.07772121,2573.3,2573.0,3.2078]
[1739367578655,0.77742,2572.8,2572.6,3.2078]
[1739367578858,0.07772121,2573.3,2572.6,3.2078]
[1739367579060,0.07772121,2573.3,2573.1,3.2078]
[1739367579954,3.2078,2575.0,2573.2,4.9536359]
[1739367580161,0.07767291,2574.9,2573.7,3.2078]
[1739367580455,0.07767291,2574.9,2573.4,3.2078]
[1739367580656,0.07767291,2574.9,2574.0,3.2078]
[1739367580960,0.07767291,2574.9,2574.2,3.2078]
[1739367581257,0.07767291,2574.9,2574.5,3.2078]
[1739367581460,0.07767291,2574.9,2573.2,6.81964354]
[1739367581461,0.77686,2574.6,2574.3,5.11483398]
[1739367581753,0.00582705,2574.7,2574.3,5.11483398]
[1739367581947,0.77695,2574.3,2574.2,0.00582705]
[1739367582153,0.00582705,2574.7,2574.2,3.21362705]
[1739367582353,0.77695,2574.3,2574.2,0.00582705]
[1739367582546,0.77695,2574.3,2574.2,7.05e-06]
[1739367582746,3.98475,2574.3,2574.2,7.05e-06]
[1739367582954,9.2078,2574.3,2572.1,3.2078]
[1739367583249,3.2078,2573.5,2572.1,3.2078]
[1739367583450,3.2078,2573.1,2572.4,3.2078]
[1739367583648,0.77756,2572.3,2572.0,3.2078]
[1739367583855,3.2078,2572.9,2571.7,3.2078]
[1739367584257,3.2078,2572.3,2571.9,0.00582705]
[1739367584556,3.98544,2572.0,2571.9,7.05e-06]
[1739367584756,0.77764,2572.0,2571.9,7.05e-06]
[1739367584951,3.98544,2572.0,2571.9,7.05e-06]
[1739367585149,0.77764,2572.0,2571.9,7.05e-06]
[1739367585354,0.00582705,2572.4,2571.9,9.20780705]
[1739367585555,0.00582705,2572.4,2571.9,3.20780705]
[1739367585861,3.2078,2573.5,2572.2,3.2078]
[1739367586158,0.77764,2572.0,2571.9,7.05e-06]
[1739367586563,0.77763,2572.1,2571.9,7.05e-06]
[1739367586752,3.2078,2572.9,2571.9,7.05e-06]
[1739367587058,0.77751,2572.5,2571.9,3.20780705]
[1739367587371,0.77739,2572.9,2572.4,3.2078]
[1739367587656,3.2078,2574.0,2572.4,3.2078]
[1739367587864,3.2078,2574.0,2571.9,6.00000705]
[1739367587865,3.2078,2574.0,2572.7,3.2078]
[1739367588056,8.76183354,2574.6,2573.0,3.2078]
[1739367588057,3.2078,2574.5,2573.0,3.2078]
[1739367588455,1.94175,2575.2,2573.9,3.2078]
[1739367588456,0.77693,2574.4,2573.9,3.2078]
[1739367588650,3.2078,2574.6,2573.9,3.2078]
[1739367588855,11.34226972,2575.4,2573.2,6.81964354]
[1739367588856,0.77693,2574.4,2573.6,3.2078]
[1739367589058,0.00582705,2574.4,2574.1,3.2078]
[1739367589962,0.77704,2574.0,2573.9,0.00582705]
[1739367590458,0.77704,2574.0,2573.9,7.05e-06]
[1739367590664,6.77704,2574.0,2573.9,7.05e-06]
[1739367590863,0.77704,2574.0,2573.9,7.05e-06]
[1739367591461,0.00582705,2574.4,2573.9,7.05e-06]
[1739367591758,0.77704,2574.0,2573.9,7.05e-06]
[1739367592955,0.7771,2573.8,2573.4,3.20700705]
[1739367593263,0.00582705,2574.4,2573.4,3.20700705]
[1739367593465,0.00582705,2574.4,2573.7,3.2078]
[1739367593662,0.00582705,2574.4,2574.0,3.2078]
[1739367594056,9.72921985,2575.4,2574.3,3.2078]
[1739367594265,9.72921985,2575.4,2575.1,3.2078]
[1739367594466,9.72921985,2575.4,2575.3,3.2078]
[1739367594761,12.93701985,2575.4,2574.4,5.07824452]
[1739367595065,3.2078,2575.3,2574.3,5.8591]
[1739367595262,0.77704,2574.0,2573.9,0.00582705]
[1739367595865,3.98484,2574.0,2573.9,7.05e-06]
[1739367596367,3.2078,2574.6,2573.9,7.05e-06]
[1739367596567,3.2078,2574.3,2573.9,7.05e-06]
[1739367597164,3.98484,2574.0,2573.9,7.05e-06]
[1739367597359,0.77704,2574.0,2573.9,7.05e-06]
[1739367597664,3.98484,2574.0,2573.9,7.05e-06]
[1739367598566,3.20779295,2573.7,2571.9,9.0669]
[1739367598862,3.2078,2572.0,2570.9,4.4794]
[1739367599171,3.2078,2571.0,2569.7,10.02744354]
[1739367599361,3.2078,2571.1,2569.7,10.02744354]
[1739367599561,0.778,2570.9,2570.2,5.08312283]
[1739367599761,3.2078,2571.1,2569.8,4.4794]
[1739367599964,0.00582705,2570.7,2570.1,0.00582705]
[1739367600771,3.2078,2571.4,2570.2,8.20238462]
[1739367600964,0.77811,2570.5,2570.2,4.99458462]
[1739367601169,3.2078,2571.0,2570.1,0.00582705]
[1739367601474,3.2078,2571.4,2570.3,5.00129429]
[1739367601657,3.2078,2571.0,2570.1,0.00582705]
[1739367601964,3.98599,2570.2,2570.1,0.00582705]
[1739367602171,3.2078,2570.5,2569.4,3.2078]
[1739367602365,3.21362705,2570.8,2569.4,3.2078]
[1739367602573,0.77816,2570.3,2569.5,4.94546321]
[1739367602865,0.00582705,2570.8,2569.7,3.2078]
[1739367603061,3.2078,2570.7,2569.7,3.2078]
[1739367603270,0.00582705,2570.8,2569.7,3.2078]
[1739367603271,0.00582705,2570.8,2569.8,5.09362268]
[1739367603463,0.00582705,2570.8,2570.0,0.00582705]
[1739367603765,0.77822,2570.1,2570.0,0.00582705]
[1739367604459,0.00582705,2570.8,2570.0,6.00582705]
[1739367604664,0.00582705,2570.8,2570.1,3.2078]
[1739367605166,0.00582705,2570.8,2570.4,3.2078]
[1739367605359,3.98557,2571.6,2570.7,3.2078]
[1739367605565,3.2078,2572.0,2570.7,3.2078]
[1739367605765,0.77771,2571.8,2570.8,4.9924763]